fUST/lending_fUST_20240806
["ID","MTS","AMOUNT","RATE_DAILY","PERIOD"]
[334295633,1722922243918,-500.0,0.00021999,2]
[334295634,1722922243927,-500.0,0.00021999,2]
[334295635,1722922243936,-500.0,0.00021999,2]
[334295636,1722922243945,-500.0,0.00021999,2]
[334295637,1722922243955,-500.0,0.00021999,2]
[334295638,1722922243965,-500.0,0.00021999,2]
[334295639,1722922243975,-500.0,0.00021999,2]
[334295640,1722922243984,-500.0,0.00021999,2]
[334295641,1722922243994,-500.0,0.00021999,2]
[334295642,1722922244004,-500.0,0.00021999,2]
[334295643,1722922244014,-621.68751159,0.00021999,2]
[334295644,1722922244023,-500.0,0.00021999,2]
[334295645,1722922244032,-500.0,0.00021999,2]
[334295646,1722922244042,-500.0,0.00021999,2]
[334295647,1722922244052,-500.0,0.00021999,2]
[334295649,1722922244061,-2837.65445789,0.00031749,7]
[334295651,1722922244074,-5243.0,0.00031749,7]
[334295673,1722922246924,-261.81,0.00031749,7]
[334295694,1722923144168,-161.348966,0.00014247,2]
[334295695,1722923144192,-611.99823085,0.00019999,2]
[334295696,1722923227102,-166.08656695,0.00019999,2]
[334295697,1722923227123,-154.67225457,0.00020721,2]
[334295698,1722923227153,-399.53211823,0.00020999,2]
[334295699,1722923232118,-186.0253114,0.00019999,2]
[334295700,1722923232140,-630.4132019,0.00020721,2]
[334295701,1722923238163,-232.00913932,0.00020721,2]
[334295702,1722923238185,-616.97897138,0.00020999,2]
[334295703,1722923238206,-818.78794327,0.00021011,2]
[334295704,1722923238228,-161.348966,0.00021065,2]
[334295705,1722923238251,-162.11925607,0.00021632,2]
[334295706,1722923238273,-154.81113139,0.00021632,2]
[334295707,1722923238295,-810.1149959,0.00021642,2]
[334295708,1722923238321,-157.90106976,0.00021642,2]
[334295709,1722923238342,-269.73277317,0.00021642,2]
[334295710,1722923238366,-154.84251865,0.00021805,2]
[334295711,1722923238388,-194.58009581,0.00021906,2]
[334295712,1722923238410,-300.0,0.00021915,2]
[334295713,1722923238431,-302.33493269,0.00022,2]
[334295714,1722923238457,-302.33493269,0.0002222,2]
[334295715,1722923238478,-302.33493269,0.0002244,2]
[334295716,1722923238669,-386.09745249,0.0002266,2]
[334295717,1722923238692,-771.98864143,0.00024241,2]
[334295718,1722923238721,-5869.46016698,0.00024241,2]
[334295719,1722923239099,-728.44587572,0.00024241,2]
[334295720,1722923240265,-2848.36326452,0.00021906,2]
[334295721,1722923240289,-530.25267449,0.00024241,2]
[334295722,1722923247120,-269.73277317,0.00021642,2]
[334295723,1722923247142,-266.53789516,0.00021906,2]
[334295724,1722923250096,-526.70885417,0.00021906,2]
[334295726,1722923349125,-241.48480741,0.00021906,2]
[334295727,1722923352094,-67.60338243,0.00021906,2]
[334295728,1722923352116,-177.39661757,0.00021906,2]
[334295729,1722923364111,-173.59765472,0.00021906,2]
[334295754,1722923432635,-777.46748131,0.00021642,2]
[334295801,1722923438614,-40036.749712,0.00021642,2]
[334295804,1722923438643,-1533.42482603,0.00021642,2]
[334295806,1722923438653,-862.42234122,0.00021805,2]
[334295807,1722923438663,-314.4873663,0.00021906,2]
[334295808,1722923438672,-1643.39565176,0.00021906,7]
[334295809,1722923438681,-772.8393457,0.00021906,2]
[334295810,1722923438690,-453.33046899,0.00021906,2]
[334295811,1722923438712,-9.6217567,0.00021906,2]
[334295812,1722923438724,-679.20515439,0.00021906,2]
[334295819,1722923440840,-80.03232664,0.00021906,2]
[334295861,1722923441911,156.99693688,0.00014247,2]
[334295862,1722923441935,4.40002912,0.00014247,2]
[334295871,1722923443742,-161.396966,0.00021065,2]
[334295872,1722923443752,-463.64893982,0.00021906,2]
[334295873,1722923443762,-3904.93751918,0.00021906,2]
[334295874,1722923443773,-1042.43055794,0.00021906,2]
[334295875,1722923443783,-500.0,0.00021915,2]
[334295876,1722923443793,-213.77650462,0.00021915,2]
[334295877,1722923443802,-500.0,0.00021915,2]
[334295879,1722923443811,-457.96527907,0.00021915,2]
[334295881,1722923443820,-258.6016331,0.00021916,2]
[334295910,1722923447765,-158.45275921,0.00021906,2]
[334295911,1722923447775,-3247.98042599,0.00021906,2]
[334295912,1722923447784,-1241.3983669,0.00021916,2]
[334295913,1722923447795,-15088.473537,0.00021916,2]
[334295914,1722923447804,-2124.22844033,0.00021916,2]
[334295915,1722923447813,-1799.42523542,0.00021916,2]
[334295916,1722923447822,-1610.68802731,0.00021916,2]
[334295917,1722923447832,-7001.77703298,0.00021916,2]
[334295918,1722923447841,-493.75381897,0.00021916,2]
[334295919,1722923447851,-154.7983992,0.00021916,2]
[334295920,1722923447860,-2278.51525994,0.00021916,3]
[334295921,1722923447869,-1392.59479936,0.00021916,2]
[334295922,1722923447878,-9643.98087226,0.00021916,2]
[334295923,1722923447888,-1991.94991085,0.00021916,2]
[334295924,1722923447897,-1763.49757797,0.00021916,2]
[334295925,1722923447907,-2278.51525994,0.00021916,3]
[334295926,1722923447916,-175.658983,0.00024773,2]
[334295927,1722923447924,-168.162923,0.00024798,2]
[334295928,1722923447933,-168.162923,0.00025013,2]
[334295929,1722923447943,-168.162923,0.00025229,2]
[334295930,1722923447953,-168.162923,0.00025444,2]
[334295931,1722923447962,-259.2218849,0.00025498,2]
[334295932,1722923447971,-168.162923,0.00025659,2]
[334295933,1722923447980,-168.162923,0.00025875,2]
[334295934,1722923447991,-346.367257,0.00026082,2]
[334295935,1722923448000,-168.162923,0.0002609,2]
[334295936,1722923448010,-1159.12366139,0.00026552,2]
[334295937,1722923448019,-200.0,0.000266,2]
[334295938,1722923448029,-182.1419505,0.00026729,2]
[334295939,1722923448043,-656.15676651,0.00026809,2]
[334295940,1722923448053,-239.375909,0.00027056,2]
[334295941,1722923448063,-161.396966,0.00027884,2]
[334295942,1722923448073,-400.0,0.0002797,2]
[334295943,1722923448083,-600.0,0.00029973,2]
[334295944,1722923448093,-1057.90623685,0.00031647,2]
[334295945,1722923448103,-1094.83,0.000317,7]
[334295946,1722923448112,-189.21351604,0.00031746,2]
[334295947,1722923448121,-500.0,0.00031746,2]
[334295948,1722923448130,-500.0,0.00031746,2]
[334295949,1722923448140,-500.0,0.00031746,2]
[334295950,1722923448149,-500.0,0.00031746,2]
[334295951,1722923448158,-500.0,0.00031746,2]
[334295952,1722923448168,-538.15999925,0.00031746,2]
[334295953,1722923448177,-500.0,0.00031746,2]
[334295954,1722923448186,-15872.5678287,0.00031747,7]
[334295955,1722923448196,-957.8870026,0.00031747,120]
[334295956,1722923448205,-894.54610017,0.00031747,30]
[334295957,1722923448215,-1463.80790527,0.00031749,2]
[334295958,1722923448225,-284.89127157,0.00031749,3]
[334295959,1722923448234,-182.1419505,0.00032065,2]
[334295960,1722923448243,-800.0,0.00032314,2]
[334295961,1722923448253,-1057.90623678,0.00033844,2]
[334295962,1722923448262,-161.396966,0.00034703,2]
[334295963,1722923448271,-1000.0,0.00034905,2]
[334295964,1722923448282,-1057.90623678,0.0003604,2]
[334295965,1722923448294,-153.0,0.00036301,2]
[334295966,1722923448303,-153.0,0.00036301,2]
[334295967,1722923448312,-153.0,0.00036301,2]
[334295968,1722923448321,-153.0,0.00036301,2]
[334295969,1722923448331,-153.0,0.00036301,2]
[334295970,1722923448340,-1307.41,0.000365,120]
[334295971,1722923448350,-2973.35,0.0003659,3]
[334295972,1722923448359,-39965.36978983,0.000366,2]
[334295973,1722923448626,-677.59086141,0.000366,2]
[334297374,1722924434172,-195.6718464,0.00014147,2]
[334297375,1722924434194,-163.246091,0.00014247,2]
[334297376,1722924434215,-413.31991594,0.00018721,2]
[334297377,1722924437135,-424.78209006,0.00018721,2]
[334297378,1722924437158,-5313.41350814,0.00019256,2]
[334297379,1722924438117,-655.99538932,0.00019256,2]
[334297380,1722924449121,-1230.94961231,0.00019256,2]
[334297381,1722924450318,-649.77350298,0.00019256,2]
[334297384,1722924547090,-245.0,0.00019167,2]
[334297385,1722924552997,-16895.84676197,0.00019167,2]
[334297386,1722924553019,-300.0,0.00019174,2]
[334297387,1722924553041,-300.0,0.00019175,2]
[334297388,1722924553064,-500.0,0.00019176,2]
[334297389,1722924553233,-500.0,0.00019176,2]
[334297390,1722924553256,-500.0,0.00019176,2]
[334297391,1722924553279,-500.0,0.00019176,2]
[334297392,1722924553301,-500.0,0.00019176,2]
[334297393,1722924553324,-500.0,0.00019176,2]
[334297394,1722924553347,-500.0,0.00019176,2]
[334297395,1722924553368,-423.31755793,0.00019176,2]
[334297396,1722924553390,-474.87219644,0.00019176,2]
[334297397,1722924553411,-352.65665323,0.00019176,2]
[334297398,1722924553440,-506.16619394,0.00019176,2]
[334297399,1722924553462,-150.9000323,0.00019176,2]
[334297400,1722924554140,-264.05918705,0.00019176,2]
[334297401,1722924557119,-173.815777,0.00018827,2]
[334297402,1722924557144,-173.815777,0.00018879,2]
[334297403,1722924557168,-173.815777,0.00018931,2]
[334297404,1722924557191,-173.815777,0.00018982,2]
[334297405,1722924557212,-173.815777,0.00019034,2]
[334297406,1722924557236,-173.815777,0.00019086,2]
[334297407,1722924557260,-173.815777,0.00019137,2]
[334297408,1722924557282,-9643.98087226,0.00019139,2]
[334297409,1722924557304,-85.04078065,0.00019176,2]
[334297410,1722924557326,-500.0,0.00019176,2]
[334297411,1722924557349,-500.0,0.00019176,2]
[334297412,1722924557370,-500.0,0.00019176,2]
[334297413,1722924557392,-500.0,0.00019176,2]
[334297414,1722924557414,-500.0,0.00019176,2]
[334297415,1722924557441,-500.0,0.00019176,2]
[334297416,1722924557462,-432.07896432,0.00019176,2]
[334297417,1722924557483,-500.0,0.00019176,2]
[334297418,1722924557504,-339.4314789,0.00019176,2]
[334297419,1722924557525,-500.0,0.00019176,2]
[334297420,1722924557545,-1459.88124088,0.00019177,2]
[334297421,1722924557567,-173.815777,0.00019189,2]
[334297422,1722924557588,-2722.8837225,0.00019216,2]
[334297423,1722924557609,-173.815777,0.00019241,2]
[334297424,1722924557630,-1495.72315932,0.00019256,2]
[334297425,1722924557650,-206.81481592,0.00019256,2]
[334297426,1722924557670,-912.4763458,0.00019256,2]
[334297427,1722924557701,-3785.54866294,0.00019256,2]
[334297428,1722924557721,-218.74438311,0.00019256,2]
[334297429,1722924557742,-583.12981055,0.00019256,2]
[334297430,1722924557762,-154.70123533,0.00019256,2]
[334297431,1722924557782,-3620.01631471,0.00019256,2]
[334297432,1722924557807,-211.89311892,0.00019256,2]
[334297433,1722924557828,-451.89339907,0.00019256,2]
[334297434,1722924557849,-2154.23665379,0.00019256,2]
[334297435,1722924557869,-269.35281729,0.00019256,2]
[334297436,1722924563110,-115.8726966,0.00019256,2]
[334297437,1722924563133,-206.54114914,0.00019256,2]
[334297438,1722924563156,-154.63660398,0.00019256,2]
[334297439,1722924563181,-154.72922386,0.00019256,2]
[334297440,1722924563204,-173.815777,0.00019292,2]
[334297441,1722924563226,-173.815777,0.00019344,2]
[334297442,1722924563249,-173.815777,0.00019395,2]
[334297443,1722924563272,-173.815777,0.00019447,2]
[334297444,1722924563293,-154.63660398,0.00019477,2]
[334297445,1722924563315,-173.815777,0.00019499,2]
[334297446,1722924563337,-173.815777,0.0001955,2]
[334297447,1722924563359,-173.815777,0.00019602,2]
[334297448,1722924563381,-862.42234122,0.00019999,2]
[334297449,1722924563402,-154.79103211,0.00019999,2]
[334297450,1722924563423,-156.37509576,0.0002,2]
[334297451,1722924563447,-13986.3959123,0.00020175,2]
[334297452,1722924563469,-246.41306879,0.0002028,2]
[334297453,1722924563489,-1500.0,0.0002028,2]
[334297454,1722924563510,-206.86610956,0.00020536,4]
[334297455,1722924563533,-2009.67118219,0.00020607,2]
[334297456,1722924563555,-1822.146772,0.00020636,2]
[334297457,1722924563577,-163.246091,0.00020707,2]
[334297458,1722924563600,-420.0,0.00021093,2]
[334297459,1722924563622,-288.83483436,0.0002142,2]
[334297460,1722924563644,-235.8,0.00021522,3]
[334297461,1722924563667,-500.0,0.00021531,2]
[334297462,1722924563692,-219.83573946,0.00021531,2]
[334297463,1722924563714,-610.96632852,0.00021531,2]
[334297464,1722924563736,-224.93338381,0.00021531,2]
[334297465,1722924563758,-500.0,0.00021531,2]
[334297466,1722924563780,-500.0,0.00021531,2]
[334297467,1722924563802,-500.0,0.00021531,2]
[334297468,1722924563826,-500.0,0.00021531,2]
[334297469,1722924563851,-500.0,0.00021531,2]
[334297470,1722924563874,-500.0,0.00021531,2]
[334297471,1722924563898,-500.0,0.00021531,2]
[334297472,1722924563921,-500.0,0.00021531,2]
[334297473,1722924563945,-500.0,0.00021531,2]
[334297474,1722924563967,-466.80145007,0.00021531,2]
[334297475,1722924563990,-500.0,0.00021531,2]
[334297476,1722924564012,-45405.5863361,0.00021532,3]
[334297477,1722924564034,-9110.76868748,0.00021532,2]
[334297478,1722924564054,-26120.50095144,0.00021532,2]
[334297479,1722924564075,-1368.86585383,0.00021542,2]
[334297480,1722924564096,-1763.75242219,0.00021542,2]
[334297481,1722924564117,-250.38146921,0.00021542,2]
[334297482,1722924564140,-1100.28795506,0.00021542,2]
[334297483,1722924564161,-155.02102962,0.00021542,2]
[334297484,1722924564183,-1991.94991085,0.00021589,2]
[334297485,1722924564204,-951.94046237,0.00021589,2]
[334297486,1722924564224,-1109.04434069,0.00021589,2]
[334297487,1722924564245,-13000.0,0.00021609,2]
[334297488,1722924564266,-151.0,0.00021632,2]
[334297489,1722924564288,-646.583938,0.00021632,2]
[334297490,1722924564310,-646.583938,0.00021632,2]
[334297491,1722924564331,-229.308228,0.00021632,2]
[334297492,1722924564353,-151.0,0.00021642,2]
[334297493,1722924564376,-151.0,0.00021642,2]
[334297494,1722924564397,-151.0,0.00021642,2]
[334297495,1722924564421,-1175.930659,0.00021642,2]
[334297496,1722924564445,-1175.930659,0.00021642,2]
[334297497,1722924564467,-151.0,0.00021642,2]
[334297498,1722924564489,-151.0,0.00021642,2]
[334297499,1722924564512,-151.0,0.00021642,2]
[334297500,1722924564534,-7169.1331224,0.00021642,2]
[334297501,1722924564557,-3088.06064461,0.00021642,2]
[334297502,1722924564579,-2139.49023769,0.00021642,2]
[334297503,1722924564600,-694.25197697,0.00021642,2]
[334297504,1722924564623,-1091.69139402,0.00021642,2]
[334297505,1722924564645,-154.63660398,0.00021642,2]
[334297506,1722924564667,-341.91139724,0.00021642,2]
[334297507,1722924564694,-253.25329487,0.00021805,2]
[334297508,1722924564716,-1068.61527021,0.00021805,2]
[334297509,1722924564865,-241.3496797,0.00021805,2]
[334297510,1722924564887,-1610.90790663,0.00021805,2]
[334297511,1722924564909,-1392.59479936,0.00021805,2]
[334297512,1722924564934,-154.67225457,0.00021805,2]
[334297513,1722924564954,-414.88650261,0.00021805,2]
[334297514,1722924564976,-294.09032939,0.00021805,2]
[334297515,1722924564996,-154.92106328,0.00021805,2]
[334297516,1722924565018,-194.60736977,0.00021805,2]
[334297517,1722924565038,-269.73277317,0.00021805,2]
[334297518,1722924565060,-156.89400092,0.00021805,2]
[334297519,1722924565081,-616.97897138,0.00021805,2]
[334297520,1722924565102,-157.90106976,0.00021805,2]
[334297521,1722924565124,-1325.96264563,0.00021805,2]
[334297522,1722924565145,-209.7052712,0.00021805,2]
[334297523,1722924565166,-816.39879119,0.00021805,2]
[334297524,1722924565192,-154.81113139,0.00021805,2]
[334297525,1722924565216,-810.1149959,0.00021805,2]
[334297526,1722924565239,-154.63660398,0.00021805,2]
[334297527,1722924565263,-27485.48292003,0.00021896,3]
[334297632,1722924638103,-173.815777,0.00019654,2]
[334297634,1722924638113,-173.815777,0.00019705,2]
[334297636,1722924638122,-173.815777,0.00019757,2]
[334297638,1722924638132,-173.815777,0.00019809,2]
[334297640,1722924638141,-172.023901,0.00019962,2]
[334297642,1722924638151,-156.33121532,0.0002,2]
[334297644,1722924638161,-1763.75242219,0.00021048,2]
[334297646,1722924638170,-951.94046237,0.00021532,2]
[334297648,1722924638179,-250.35702584,0.00021532,2]
[334297650,1722924638189,-1674.68108831,0.00021599,7]
[334297652,1722924638199,-300.0,0.00021631,2]
[334297654,1722924638208,-1265.018333,0.00021632,2]
[334297656,1722924638218,-1265.018333,0.00021632,2]
[334297658,1722924638228,-476.092422,0.00021632,2]
[334297660,1722924638238,-476.092422,0.00021632,2]
[334297662,1722924638247,-215.144831,0.00021632,2]
[334297665,1722924638256,-215.144831,0.00021632,2]
[334297667,1722924638266,-1343.276804,0.00021632,2]
[334297669,1722924638280,-1343.276804,0.00021632,2]
[334297671,1722924638290,-810.79057909,0.00021642,2]
[334297673,1722924638299,-347.82301778,0.00021642,2]
[334297675,1722924638310,-154.96199077,0.00021805,2]
[334297677,1722924638320,-500.0,0.00021895,2]
[334297679,1722924638329,-3529.83539969,0.00021896,2]
[334297681,1722924638338,-17920.10341607,0.00021896,3]
[334297683,1722924638348,-154.89925365,0.00021906,2]
[334297685,1722924638358,-154.72922386,0.00021906,2]
[334297687,1722924638368,-151.0,0.00021916,2]
[334297689,1722924638377,-646.583938,0.00021916,2]
[334297691,1722924638387,-646.583938,0.00021916,2]
[334297693,1722924638397,-1265.018333,0.00021916,2]
[334297695,1722924638406,-1265.018333,0.00021916,2]
[334297697,1722924638416,-476.092422,0.00021916,2]
[334297699,1722924638426,-476.092422,0.00021916,2]
[334297701,1722924638435,-215.144831,0.00021916,2]
[334297703,1722924638445,-215.144831,0.00021916,2]
[334297705,1722924638455,-154.79103211,0.00021916,2]
[334297707,1722924638464,-1343.276804,0.00021916,2]
[334297709,1722924638475,-1343.276804,0.00021916,2]
[334297712,1722924638485,-302.33493269,0.00022,2]
[334297714,1722924638495,-302.33493269,0.0002222,2]
[334297716,1722924638505,-302.33493269,0.0002244,2]
[334297718,1722924638515,-386.0974525,0.0002266,2]
[334297720,1722924638527,-160.200956,0.00023122,2]
[334297722,1722924638537,-154.63660398,0.00023242,2]
[334297724,1722924638546,-842.98430012,0.00023242,2]
[334297726,1722924638556,-2058.75376711,0.00023242,2]
[334297728,1722924638566,-175.75643477,0.00023242,2]
[334297730,1722924638576,-621.76442651,0.00023242,2]
[334297732,1722924638586,-1091.57771247,0.00023242,2]
[334297734,1722924638595,-155.16134373,0.00023242,2]
[334297736,1722924638605,-154.63660398,0.00023242,2]
[334297738,1722924638615,-1109.04434069,0.00023242,2]
[334297740,1722924638624,-269.63517677,0.00023242,2]
[334297742,1722924638634,-410.62296882,0.00023242,2]
[334297744,1722924638644,-862.42234122,0.00023242,2]
[334297746,1722924638654,-9110.76868748,0.00023242,2]
[334297748,1722924638664,-6426.9842008,0.00023242,2]
[334297750,1722924638675,-376.0,0.00023794,2]
[334297763,1722924638684,-189.55103082,0.00025,2]
[334297766,1722924638807,-1162.39623563,0.0002654,2]
[334297768,1722924638817,-163.246091,0.00027167,2]
[334297770,1722924638828,-304.821958,0.00027397,7]
[334297772,1722924638840,-304.821958,0.00027397,7]
[334297774,1722924638851,-2009.67118217,0.00027841,2]
[334297776,1722924638862,-1000.0,0.00028,28]
[334297778,1722924638872,-456.75587636,0.00028027,2]
[334297780,1722924638882,-238.68,0.00028077,120]
[334297782,1722924638892,-838.102006,0.00028082,2]
[334297784,1722924638903,-150.5,0.00028087,120]
[334297786,1722924638912,-500.0,0.00028106,2]
[334297788,1722924638921,-239.39945442,0.00028106,2]
[334297790,1722924638931,-266.43683965,0.00028106,2]
[334297792,1722924638941,-500.0,0.00028106,2]
[334297793,1722924638950,-500.0,0.00028106,2]
[334297794,1722924638959,-500.0,0.00028106,2]
[334297795,1722924638969,-500.0,0.00028106,2]
[334297796,1722924638980,-500.0,0.00028106,2]
[334297797,1722924638990,-500.0,0.00028106,2]
[334297798,1722924639000,-500.0,0.00028106,2]
[334297799,1722924639009,-604.43744501,0.00028106,2]
[334297800,1722924639019,-151.0,0.00028106,7]
[334297801,1722924639030,-151.0,0.00028106,7]
[334297802,1722924639040,-151.0,0.00028106,7]
[334297803,1722924639049,-1175.930659,0.00028106,7]
[334297804,1722924639059,-1175.930659,0.00028106,7]
[334297805,1722924639068,-151.0,0.00028106,7]
[334297806,1722924639078,-153.353356,0.00028106,7]
[334297807,1722924639087,-151.0,0.00028106,7]
[334297808,1722924639097,-304.821958,0.00028106,7]
[334297809,1722924639106,-304.821958,0.00028106,7]
[334297810,1722924639117,-45405.5863361,0.00028107,3]
[334297811,1722924639126,-151.0,0.00028116,7]
[334297812,1722924639135,-1124.554608,0.00028116,7]
[334297813,1722924639144,-1124.554608,0.00028116,7]
[334297814,1722924639154,-151.0,0.00028116,7]
[334297815,1722924639164,-151.0,0.00028116,7]
[334297816,1722924639174,-151.0,0.00028116,7]
[334297817,1722924639183,-646.583938,0.00028116,7]
[334297818,1722924639192,-646.583938,0.00028116,7]
[334297819,1722924639202,-1265.018333,0.00028116,7]
[334297820,1722924639212,-1265.018333,0.00028116,7]
[334297821,1722924639222,-476.092422,0.00028116,7]
[334297822,1722924639231,-476.092422,0.00028116,7]
[334297823,1722924639240,-215.144831,0.00028116,7]
[334297824,1722924639250,-215.144831,0.00028116,7]
[334297825,1722924639260,-1343.276804,0.00028116,7]
[334297826,1722924639269,-1343.276804,0.00028116,7]
[334297827,1722924639281,-151.0,0.00028117,7]
[334297828,1722924639290,-964.220237,0.00028117,7]
[334297829,1722924639299,-152.25961,0.00028117,7]
[334297831,1722924639308,-1124.554608,0.00028117,7]
[334297833,1722924639317,-1124.554608,0.00028117,7]
[334297835,1722924639327,-151.0,0.00028117,7]
[334297837,1722924639336,-151.0,0.00028117,7]
[334297839,1722924639346,-151.0,0.00028117,7]
[334297841,1722924639355,-259.027347,0.00028117,7]
[334297843,1722924639365,-151.0,0.00028117,7]
[334297845,1722924639374,-1175.930659,0.00028117,7]
[334297847,1722924639385,-1175.930659,0.00028117,7]
[334297849,1722924639394,-151.0,0.00028117,7]
[334297851,1722924639403,-151.0,0.00028117,7]
[334297853,1722924639412,-304.821958,0.00028117,7]
[334297855,1722924639422,-151.0,0.00028117,7]
[334297857,1722924639432,-304.821958,0.00028117,7]
[334297859,1722924639442,-646.583938,0.00028117,7]
[334297861,1722924639452,-646.583938,0.00028117,7]
[334297863,1722924639462,-1265.018333,0.00028117,7]
[334297865,1722924639471,-1265.018333,0.00028117,7]
[334297867,1722924639482,-476.092422,0.00028117,7]
[334297869,1722924639492,-476.092422,0.00028117,7]
[334297871,1722924639501,-215.144831,0.00028117,7]
[334297873,1722924639511,-215.144831,0.00028117,7]
[334297875,1722924639520,-1343.276804,0.00028117,7]
[334297877,1722924639531,-1343.276804,0.00028117,7]
[334297879,1722924639540,-150.5,0.00028117,120]
[334297881,1722924639550,-136216.759008,0.00028125,3]
[334297883,1722924639559,-1113.240495,0.00028127,7]
[334297885,1722924639569,-1113.240495,0.00028127,7]
[334297887,1722924639578,-466.262553,0.00028127,7]
[334297889,1722924639588,-466.262553,0.00028127,7]
[334297891,1722924639598,-151.0,0.00028127,7]
[334297893,1722924639607,-596.973784,0.00028127,7]
[334297895,1722924639616,-596.973784,0.00028127,7]
[334297897,1722924639626,-151.0,0.00028127,7]
[334297899,1722924639635,-964.220237,0.00028127,7]
[334297901,1722924639644,-1124.554608,0.00028127,7]
[334297903,1722924639653,-1124.554608,0.00028127,7]
[334297905,1722924639663,-152.875941,0.00028127,7]
[334297907,1722924639673,-153.398531,0.00028127,7]
[334297909,1722924639682,-151.0,0.00028127,7]
[334297911,1722924639691,-1175.930659,0.00028127,7]
[334297913,1722924639701,-1175.930659,0.00028127,7]
[334297915,1722924639711,-151.0,0.00028127,7]
[334297917,1722924639720,-151.0,0.00028127,7]
[334297919,1722924639730,-304.821958,0.00028127,7]
[334297921,1722924639739,-304.821958,0.00028127,7]
[334297923,1722924639748,-151.0,0.00028135,7]
[334297925,1722924639758,-646.583938,0.00028135,7]
[334297927,1722924639768,-646.583938,0.00028135,7]
[334297929,1722924639779,-1265.018333,0.00028135,7]
[334297931,1722924639789,-1265.018333,0.00028135,7]
[334297933,1722924639800,-476.092422,0.00028135,7]
[334297935,1722924639810,-476.092422,0.00028135,7]
[334297937,1722924639820,-215.144831,0.00028135,7]
[334297940,1722924639832,-215.144831,0.00028135,7]
[334297942,1722924639846,-1343.276804,0.00028135,7]
[334297944,1722924639856,-1343.276804,0.00028135,7]
[334297946,1722924639866,-137802.6201,0.00028135,30]
[334297948,1722924639877,-4893.06,0.000282,14]
[334297950,1722924639887,-661.41,0.000282,14]
[334297952,1722924639896,-212.77020389,0.00028989,2]
[334297954,1722924639906,-456.75587633,0.00029743,2]
[334297956,1722924639918,-302.81833017,0.0003,2]
[334297958,1722924639928,-151.0,0.0003,120]
[334297960,1722924639939,-2009.67118217,0.00031458,2]
[334297962,1722924639949,-456.75587633,0.00031459,2]
[334297965,1722924639960,-151.0,0.00032137,120]
[334297967,1722924639970,-1752.432082,0.00032877,7]
[334297969,1722924639979,-1752.432082,0.00032877,7]
[334297971,1722924639989,-1752.432082,0.00032877,7]
[334297973,1722924639999,-1752.432082,0.00032877,7]
[334297975,1722924640008,-1752.432082,0.00032877,7]
[334297977,1722924640018,-1752.432082,0.00032877,7]
[334297979,1722924640034,-1752.432082,0.00032877,7]
[334297981,1722924640048,-1752.432082,0.00032877,7]
[334297983,1722924640058,-1752.432082,0.00032877,7]
[334297985,1722924640072,-1752.432082,0.00032877,7]
[334297987,1722924640082,-1000.0,0.00033,33]
[334297989,1722924640093,-456.75587633,0.00033174,2]
[334297991,1722924640103,-45405.5863361,0.00033475,4]
[334297993,1722924640113,-1113.240495,0.00033475,7]
[334297995,1722924640122,-1113.240495,0.00033475,7]
[334297997,1722924640132,-466.262553,0.00033475,7]
[334297999,1722924640142,-466.262553,0.00033475,7]
[334298001,1722924640151,-151.0,0.00033475,7]
[334298003,1722924640161,-596.973784,0.00033475,7]
[334298005,1722924640170,-596.973784,0.00033475,7]
[334298007,1722924640180,-151.0,0.00033475,7]
[334298009,1722924640190,-964.220237,0.00033475,7]
[334298011,1722924640200,-1124.554608,0.00033475,7]
[334298013,1722924640210,-1124.554608,0.00033475,7]
[334298015,1722924640220,-151.0,0.00033475,7]
[334298017,1722924640231,-1175.930659,0.00033475,7]
[334298021,1722924640327,-1175.930659,0.00033475,7]
[334298022,1722924640337,-151.0,0.00033475,7]
[334298023,1722924640347,-151.0,0.00033475,7]
[334298024,1722924640356,-304.821958,0.00033475,7]
[334298025,1722924640366,-151.0,0.00033475,7]